fUST/lending_fUST_20240807
["ID","MTS","AMOUNT","RATE_DAILY","PERIOD"]
[334319467,1722965442869,-600.2092192,0.00037986,15]
[334319468,1722965442878,-12639.67617595,0.00037987,4]
[334319469,1722965442890,-2555.0439,0.00037987,4]
[334319470,1722965442906,-21063.96824265,0.00037987,4]
[334319471,1722965442918,-213.56714725,0.00037989,2]
[334319472,1722965442928,-18129.3441593,0.0003799,4]
[334319473,1722965442938,-153.06260706,0.00037991,2]
[334319474,1722965442949,-117248.6843791,0.00037997,2]
[334319475,1722965442959,-633.02,0.00037999,14]
[334319476,1722965442969,-11069.74463043,0.00038,2]
[334319477,1722965442979,-1000.0,0.00038,38]
[334319478,1722965442988,-16868.0,0.00038,120]
[334319479,1722965442998,-15127.18120406,0.00038,120]
[334319490,1722965443669,-1413.8,0.00038,120]
[334319491,1722965443681,-327.01879594,0.00038,120]
[334319492,1722965443692,-12820.48,0.00038,120]
[334319493,1722965443702,-213.56714725,0.00038078,2]
[334319494,1722965443712,-213.56714725,0.00038166,2]
[334319495,1722965443721,-8754.29830436,0.00038226,4]
[334319505,1722965454897,273.37336231,9.9e-05,2]
[334319506,1722965463288,273.37336231,9.9e-05,2]
[334319507,1722965724786,165.718194,0.00014247,2]
[334319511,1722966427133,-156.37509576,0.0002,2]
[334319512,1722966427156,-151.0,0.0003,120]
[334319513,1722966427179,-150.0,0.000322,11]
[334319514,1722966427200,-151.0,0.00033014,120]
[334319515,1722966427222,-29.48831993,0.00033816,120]
[334319516,1722966450116,-144.06565707,0.00033816,120]
[334319517,1722966450138,-1018.88174498,0.00034,4]
[334319518,1722966451114,-813.11843506,0.00034,4]
[334319519,1722966451145,-293.195676,0.00034135,2]
[334319520,1722966451170,-165.718194,0.00034703,2]
[334319521,1722966451192,-151.0,0.00036027,120]
[334319522,1722966451215,-162.95479444,0.00036767,2]
[334319570,1722966631793,-151.0,0.00032578,14]
[334319572,1722966631803,-173.553977,0.0003539,120]
[334319574,1722966631812,-1167.46785917,0.00036767,30]
[334319575,1722966631823,-1081.46613896,0.00036767,30]
[334319576,1722966631844,-632.68231449,0.00036767,30]
[334319577,1722966631858,-4337.21955596,0.00036767,30]
[334319581,1722966631947,-176.22078883,0.00036767,30]
[334319582,1722966631959,-379.19356454,0.00036767,30]
[334319583,1722966631971,-2225.74977805,0.00036767,30]
[334319584,1722966631981,-4758.94922788,0.00036767,2]
[334319585,1722966631993,-680.57379999,0.00036767,2]
[334319608,1722966637928,-3163.63418224,0.00036767,2]
[334319609,1722966637938,-238.58435416,0.00036767,4]
[334319610,1722966637947,-143.04520556,0.00036767,2]
[334319611,1722966637957,-3177.68724717,0.00037596,2]
[334319612,1722966637966,-3177.68724718,0.00037879,2]
[334319613,1722966637975,-613.3588452,0.00037889,7]
[334319614,1722966637984,-519.07783047,0.00037889,15]
[334319615,1722966637993,-8437.70713278,0.0003789,5]
[334319616,1722966638003,-255.0,0.00037997,120]
[334319617,1722966638012,-152.0,0.00038,120]
[334319618,1722966638021,-1910.50733351,0.00038145,2]
[334319619,1722966638031,-213.56714727,0.00038156,2]
[334319620,1722966638040,-500.0,0.00038174,4]
[334319621,1722966638049,-5779.53656085,0.00038246,4]
[334319623,1722966638062,-9837.63564025,0.00038246,4]
[334319624,1722966638071,-5141.51,0.00038246,3]
[334319625,1722966638080,-183.41005465,0.00038255,15]
[334319626,1722966638089,-251.00074733,0.00038255,15]
[334319627,1722966638098,-500.0,0.00038255,15]
[334319628,1722966638108,-500.0,0.00038255,15]
[334319629,1722966638117,-500.0,0.00038255,15]
[334319630,1722966638126,-500.0,0.00038255,15]
[334319631,1722966638135,-500.0,0.00038255,15]
[334319632,1722966638144,-269.6880596,0.00038255,15]
[334319633,1722966638153,-500.0,0.00038255,15]
[334319634,1722966638162,-600.2092192,0.00038255,15]
[334319635,1722966638171,-33554.70324139,0.00038256,5]
[334319636,1722966638187,-55333.29675861,0.00038256,5]
[334319637,1722966638195,-200.0,0.00038256,120]
[334319638,1722966638205,-213.56714727,0.00038256,2]
[334319639,1722966638214,-970.0946434,0.00038256,2]
[334319640,1722966638224,-606.64,0.00038259,14]
[334319641,1722966638233,-15617.1722011,0.0003829,4]
[334319642,1722966638242,-606.64,0.00038299,14]
[334319643,1722966638251,-606.64,0.00038299,14]
[334319644,1722966638260,-16363.4032445,0.000383,60]
[334319679,1722966640319,-13636.5967555,0.000383,60]
[334319681,1722966640329,-32000.0,0.000383,60]
[334319683,1722966640338,-150.112233,0.000383,8]
[334319684,1722966640348,-150.112233,0.000383,6]
[334319685,1722966640357,-150.112233,0.000383,6]
[334319686,1722966640367,-150.112233,0.000383,6]
[334319687,1722966640378,-15617.1722011,0.00038335,4]
[334319688,1722966640387,-1000.0,0.00038345,45]
[334319689,1722966640397,-606.64,0.00038345,14]
[334319690,1722966640407,-606.64,0.00038345,14]
[334319691,1722966640417,-606.64,0.00038345,14]
[334319692,1722966640427,-606.64,0.00038345,14]
[334319693,1722966640436,-606.64,0.00038345,14]
[334319694,1722966640445,-1778.05759548,0.00038345,21]
[334319695,1722966640456,-15617.1722011,0.00038346,4]
[334319696,1722966640465,-28624.28238333,0.00038346,4]
[334319717,1722966642878,-1123.96077057,0.00036767,4]
[334319718,1722966642916,-982.35474834,0.00036767,4]
[334319719,1722966642927,-10900.46954652,0.00038346,4]
[334319720,1722966642943,-6197.90370786,0.00038346,4]
[334319722,1722966642963,-8211.0000002,0.00038346,4]
[334319755,1722966646102,-14275.21797883,0.00038346,4]
[334319767,1722966646227,-32947.39016616,0.00038346,4]
[334319812,1722966647611,646.93007641,0.00027,120]
[334319813,1722966678443,2673.3804397,0.00027,120]
[334319814,1722966678466,2326.6195603,0.00027,120]
[334319815,1722966683273,154.84733447,0.00021916,2]
[334319816,1722966686419,769.75207304,0.00027,120]
[334319817,1722966686442,3302.39346144,0.00027,120]
[334319818,1722966686465,153.24759384,0.00027,120]
[334319819,1722966686498,774.60687168,0.00027,120]
[334319821,1722966695041,273.37336231,9.9e-05,2]
[334319823,1722966702793,136.64859553,9.9e-05,2]
[334319824,1722966702815,136.72476678,9.9e-05,2]
[334319825,1722966712522,13.64489959,9.9e-05,2]
[334319826,1722966712552,234.31937184,9.9e-05,2]
[334319827,1722966712579,25.40909088,9.9e-05,2]
[334319830,1722966720965,273.37336231,9.9e-05,2]
[334319831,1722966729545,273.37336231,9.9e-05,2]
[334319832,1722966737865,273.37336231,9.9e-05,2]
[334319833,1722966746110,273.37336231,9.9e-05,2]
[334319834,1722966761214,156.99277567,0.00012,2]
[334319836,1722966771060,3786.54291341,9.9e-05,2]
[334319837,1722966774855,3602.88765659,9.9e-05,2]
[334319838,1722966776130,16288.37255921,9.9e-05,2]
[334319839,1722966781671,19465.01870701,9.9e-05,2]
[334319840,1722966781790,616.48837097,9.9e-05,2]
[334319841,1722966785382,404.83485279,9.9e-05,2]
[334319843,1722966790293,3609.28567796,9.9e-05,2]
[334319844,1722966794172,4712.76356463,9.9e-05,2]
[334319845,1722966797048,1493.14948122,9.9e-05,2]
[334319853,1722966817952,165.596341,0.00014247,2]
[334319854,1722966818568,3775.74769925,0.00012,2]
[334319855,1722966823893,404.68480857,0.00012,2]
[334319856,1722966834360,630.18613965,0.00012,2]
[334319857,1722966834388,598.39630678,0.00012,2]
[334319858,1722966837803,3607.95713558,0.00012,2]
[334319859,1722966847550,959.43889207,0.00012,2]
[334319869,1722967373884,1795.3780776,0.00014545,2]
[334319871,1722967393696,4478.29049433,0.00014545,2]
[334319872,1722967398686,1247.62091396,0.00014545,2]
[334319873,1722967400915,207.60528276,0.00014545,2]
[334319874,1722967404221,9239.29051001,0.00014545,2]
[334319875,1722967410385,218.36320889,0.00014545,2]
[334319881,1722967502191,185.45927503,0.00014545,2]
[334319898,1722967587838,218.09499306,0.00014545,2]
[334319899,1722967594555,273.37336231,9.9e-05,2]
[334319914,1722967646132,-727.52933543,0.00017389,2]
[334319915,1722967646154,-848.53287184,0.00017389,2]
[334319916,1722967646177,-506.48190828,0.00017389,2]
[334319917,1722967646199,-298.60464548,0.00017402,2]
[334319918,1722967651146,-1.39535452,0.00017402,2]
[334319919,1722967651168,-532.14086008,0.00017403,2]
[334319920,1722967651189,-156.96415589,0.00017403,2]
[334319921,1722967651211,-154.72922386,0.00017403,2]
[334319922,1722967651231,-216.38317059,0.00017403,2]
[334319923,1722967651253,-296.92058429,0.00017403,2]
[334319924,1722967651275,-244.84557874,0.00017403,2]
[334319925,1722967651300,-155.03009972,0.00017403,2]
[334319926,1722967651323,-322.60271581,0.00017403,2]
[334319927,1722967651346,-117.36874185,0.00018999,2]
[334319930,1722967750114,-4110.44330417,0.000199,2]
[334319931,1722967751104,-1805.27691297,0.000199,2]
[334319932,1722967751126,-154.79103211,0.00019999,2]
[334319933,1722967751151,-156.37509576,0.0002,2]
[334319934,1722967751171,-244.5441361,0.0002142,2]
[334319935,1722967751192,-178.3278382,0.00024457,2]
[334319936,1722967751214,-1874.0772062,0.00026337,2]
[334319937,1722967751236,-300.0,0.00026574,2]
[334319938,1722967751258,-241.605431,0.00026801,2]
[334319939,1722967751280,-241.605431,0.00026874,2]
[334319940,1722967751302,-241.605431,0.00026948,2]
[334319941,1722967751325,-241.605431,0.00027021,2]
[334319942,1722967751347,-241.605431,0.00027095,2]
[334319943,1722967751370,-241.605431,0.00027168,2]
[334319944,1722967751393,-241.605431,0.00027242,2]
[334319945,1722967751419,-241.605431,0.00027315,2]
[334319946,1722967751442,-241.605431,0.00027389,2]
[334319947,1722967751465,-241.605431,0.00027462,2]
[334319948,1722967751488,-241.605431,0.00027536,2]
[334319949,1722967751510,-241.605431,0.00027609,2]
[334319950,1722967751535,-241.605431,0.00027683,2]
[334319951,1722967751564,-241.605431,0.00027756,2]
[334319952,1722967751586,-241.605431,0.0002783,2]
[334319953,1722967751609,-241.605431,0.00027903,2]
[334319954,1722967751633,-241.605431,0.00027977,2]
[334319955,1722967751670,-241.605431,0.0002805,2]
[334319956,1722967751695,-241.605431,0.00028124,2]
[334319957,1722967751719,-241.605431,0.00028197,2]
[334319958,1722967767095,-420.0,0.00029231,2]
[334319959,1722967767117,-151.0,0.0003,120]
[334319960,1722967767138,-69.09360908,0.0003,120]
[334319961,1722967767598,244.5441361,0.00021048,2]
[334319962,1722967767624,-81.90639092,0.0003,120]
[334319963,1722967767647,-21586.755123,0.00030208,2]
[334319964,1722967767670,-18561.6038986,0.0003099,4]
[334319965,1722967767691,-1356.22,0.0003099,3]
[334319966,1722967767711,-678.11,0.0003099,3]
[334319967,1722967767731,-339.06,0.0003099,3]
[334319968,1722967767752,-169.53,0.0003099,3]
[334319969,1722967767773,-508.6,0.0003099,3]
[334319970,1722967767796,-10701.59059012,0.00031,2]
[334320011,1722967831951,-400.0,0.00030999,2]
[334320013,1722967831961,-924.65,0.00031,2]
[334320015,1722967831972,-1716.52419962,0.00031,2]
[334320021,1722967832034,-66.35140751,0.00031,2]
[334320023,1722967832047,-1505.14213368,0.00031,2]
[334320025,1722967832060,-2897.475,0.00031,2]
[334320027,1722967832071,-2898.09876469,0.00031,2]
[334320030,1722967832089,-2000.0,0.00031,2]
[334320071,1722967837966,-634.11204392,0.00031,2]
[334320072,1722967837979,-2741.59999999,0.00031,2]
[334320073,1722967838033,-1518.34020742,0.00031,2]
[334320074,1722967838045,-12397.19902599,0.00031,2]
[334320081,1722967840220,-291.3048,0.00031,2]
[334320082,1722967840231,-348.0,0.00031,2]
[334320083,1722967840242,-2040.8022408,0.00031,2]
[334320084,1722967840254,-24059.25284772,0.00031,2]
[334320085,1722967840264,-521.1779995,0.00031407,2]
[334320086,1722967840275,-173.553977,0.00031507,120]
[334320087,1722967840284,-150.0,0.000322,11]
[334320088,1722967840294,-2712.44,0.0003236,3]
[334320089,1722967840304,-1356.22,0.0003236,3]
[334320090,1722967840314,-678.12,0.0003236,3]
[334320091,1722967840324,-339.06,0.0003236,3]
[334320092,1722967840333,-500.0,0.00032876,14]
[334320093,1722967840343,-521.17799947,0.00033119,2]
[334320094,1722967840353,-500.0,0.0003315,16]
[334320095,1722967840363,-151.0,0.00033342,120]
[334320096,1722967840373,-500.0,0.00033424,18]
[334320097,1722967840382,-151.0,0.00033534,120]
[334320098,1722967840391,-560.0,0.00034099,2]
[334320099,1722967840401,-1411.0,0.00034434,2]
[334320100,1722967840410,-500.0,0.00034703,14]
[334320101,1722967840420,-165.596341,0.00034703,2]
[334320102,1722967840429,-521.17799947,0.00034832,2]
[334320103,1722967840439,-521.17799947,0.00036544,2]
[334320104,1722967840448,-151.0,0.00036685,120]
[334320105,1722967840459,-151.0,0.00037068,120]
[334320106,1722967840470,-322.0,0.00037509,2]
[334320107,1722967840479,-2084.83844091,0.00037575,4]
[334320108,1722967840489,-816.16582707,0.00037575,2]
[334320109,1722967840498,-209.95890543,0.00037575,4]
[334320110,1722967840507,-4284.59,0.0003819,3]
[334320111,1722967840517,-3827.92384287,0.000382,120]
[334320112,1722967842007,-20422.77486817,0.000382,120]
[334320115,1722967843105,-801.0,0.000382,120]
[334320119,1722967843134,-6944.6,0.000382,120]
[334320121,1722967843145,-2691.4,0.000382,120]
[334320147,1722967847003,-5760.0,0.000382,120]
[334320148,1722967847122,-4619.52098101,0.000382,120]
[334320149,1722967847132,-2000.0,0.00038246,2]
[334320150,1722967847142,-4427.41,0.00038246,3]
[334320151,1722967847151,-500.0,0.00038255,15]
[334320152,1722967847160,-500.0,0.00038255,15]
[334320154,1722967847170,-175.70052313,0.00038255,15]
[334320155,1722967847180,-238.78164172,0.00038255,15]
[334320156,1722967847189,-500.0,0.00038255,15]
[334320157,1722967847198,-500.0,0.00038255,15]
[334320158,1722967847207,-470.14645344,0.00038255,15]
[334320159,1722967847218,-630.06276576,0.00038255,15]
[334320160,1722967847228,-530.90641788,0.00038255,15]
[334320161,1722967847237,-14864.57743028,0.00038256,120]
[334320162,1722967847258,-1579.520888,0.00038256,120]
[334320163,1722967847269,-672.0,0.00038256,120]
[334320164,1722967847280,-5362.00000002,0.00038256,120]
[334320165,1722967850815,165.621969,0.00014247,2]
[334320167,1722967915995,2084.83844091,0.00017269,2]
[334320170,1722967934994,816.16582707,0.00021916,2]
[334320171,1722967935159,356.45346079,0.00021916,2]
[334320172,1722967935727,209.95890543,0.00021916,2]
[334320174,1722967942823,118.92133391,0.00021916,2]
[334320176,1722968313654,162.571642,0.00014247,2]
[334320177,1722968394773,208.88317408,0.00014247,2]
[334320179,1722968463421,246.79212598,0.00015954,2]
[334320180,1722968490899,1669.01055043,0.00014247,2]
[334320181,1722968523259,2812.65954126,0.00014247,2]
[334320186,1722968787174,431.78098322,0.00015954,2]
[334320187,1722968822025,165.621969,0.00014247,2]
[334320188,1722968833133,-1094.42207947,0.0002,2]
[334320189,1722968839111,-268.05192183,0.0002,2]
[334320190,1722968844118,-2891.21839076,0.0002,2]
[334320191,1722968844141,-154.60575532,0.0002,2]
[334320192,1722968844165,-251.05562029,0.0002028,2]
[334320193,1722968844187,-204.26455566,0.00020999,2]
[334320194,1722968844211,-600.8534117,0.00020999,2]
[334320195,1722968844232,-300.0,0.00020999,2]
[334320196,1722968844255,-185.57907776,0.00020999,2]
[334320197,1722968852101,-114.42092224,0.00020999,2]
[334320198,1722968852123,-201.42607315,0.00020999,2]
[334320199,1722968852145,-65.02527214,0.00021,2]
[334320207,1722968901581,273.37336231,9.9e-05,2]
[334320208,1722968909619,273.37336231,9.9e-05,2]
[334320209,1722968947142,-3192.00224225,0.0002,2]
[334320210,1722968947165,-461.0534235,0.00020721,2]
[334320211,1722968947185,-113.00594781,0.00021,2]
[334320212,1722968947208,-521.86930577,0.00021048,2]
[334320213,1722968947230,-302.21432435,0.00022,2]
[334320214,1722968947252,-302.21432435,0.0002222,2]
[334320215,1722968947273,-302.21432435,0.0002244,2]
[334320216,1722968947295,-302.21432435,0.0002266,2]
[334320217,1722968947316,-302.21432435,0.0002288,2]
[334320218,1722968947344,-151.43876892,0.000231,4]
[334320219,1722968947364,-200.0,0.00029668,15]
[334320220,1722968947387,-164.3111359,0.00029914,2]
[334320221,1722968950110,-300.0,0.00029999,2]
[334320222,1722968950131,-300.0,0.00029999,2]
[334320223,1722968950153,-40.09360908,0.0003,120]
[334320225,1722968970110,-110.90639092,0.0003,120]
[334320226,1722968970133,-1240.26931264,0.0003,2]
[334320227,1722968970156,-151.0,0.0003,120]
[334320228,1722968970177,-859.5766501,0.0003,2]
[334320229,1722968970199,-214.957492,0.00030292,2]
[334320230,1722968970222,-280.8626712,0.00030452,2]
[334320231,1722968970798,504.80821134,0.00012,2]
[334320232,1722968970819,370.37936412,0.00012,2]
[334320233,1722968978200,254.076584,0.00021191,2]
[334320264,1722969032707,-29.78354687,0.0003,2]
[334320265,1722969032719,-1210.48576577,0.0003,2]
[334320266,1722969032729,-173.553977,0.00031507,120]
[334320267,1722969032738,-254.076584,0.00031786,2]
[334320268,1722969032747,-150.0,0.000322,11]
[334320269,1722969032757,-945.05,0.00032588,3]
[334320270,1722969032765,-472.52,0.00032588,3]
[334320271,1722969032775,-236.26,0.00032588,3]
[334320272,1722969032784,-708.83,0.00032588,3]
[334320273,1722969032794,-400.0,0.00032597,2]
[334320274,1722969032804,-235.0,0.00032597,2]
[334320275,1722969032814,-154.8006082,0.00032598,30]
[334320276,1722969032824,-3592.17306503,0.00032598,60]
[334320293,1722969038226,-42.31914084,0.00032598,60]
[334320294,1722969038578,-1160.38870995,0.00032598,60]
[334320295,1722969038598,-1500.0,0.00032598,60]
[334320296,1722969038610,-280.86267126,0.00032598,60]
[334320301,1722969042194,-23780.17933219,0.00032598,60]
[334320304,1722969043158,177.28277821,9.9e-05,2]
[334320308,1722969043504,-75.48291568,0.00032498,2]
[334320309,1722969043518,-458.38971839,0.00032498,2]
[334320310,1722969043534,-451.51601229,0.00032498,2]
[334320312,1722969043545,-815.24575236,0.00032498,2]
[334320314,1722969043557,-225.87468907,0.00032498,2]
[334320316,1722969043566,-1484.02108517,0.00032598,60]
[334320319,1722969043578,-1398.5092547,0.00032598,60]
[334320358,1722969046437,-668.0,0.00032598,60]
[334320359,1722969050996,250.0,9.9e-05,2]
[334320362,1722969144646,168.46751436,0.00014,2]
[334320363,1722969144671,583.73405399,0.00014,2]
[334320364,1722969152445,12562.05639137,0.00012,2]
[334320365,1722969152515,154.76012181,0.00012,2]
[334320366,1722969154068,335.6564105,0.000132,2]
[334320367,1722969158114,154.88192351,0.00014,2]
[334320368,1722969158312,495.69104374,0.00012,2]
[334320369,1722969158519,1630.23174338,0.00012,2]
[334320370,1722969161009,182.4932488,0.00013699,2]
[334320371,1722969161362,154.59033561,0.00012,2]
[334320373,1722969207303,154.74459429,0.00016,2]
[334320374,1722969308085,159.324762,0.00014247,2]
[334320376,1722969425037,191.62470048,9.9e-05,2]
[334320378,1722969491146,154.59033561,0.00012,2]
[334320379,1722969548110,154.59033561,0.00012,2]
[334320380,1722969596617,197.85957654,0.00014545,2]
[334320383,1722969795512,165.621969,0.00014247,2]
[334320385,1722970052132,-400.41142308,0.00017269,2]
[334320386,1722970052155,-422.25303878,0.00017379,2]
[334320389,1722970153125,-3135.13722201,0.00016347,2]
[334320390,1722970156117,-14956.13002259,0.00016347,2]
[334320391,1722970156140,-300.0,0.00017018,2]
[334320392,1722970156164,-267.0,0.00017018,2]
[334320393,1722970156186,-420.0,0.0001872,2]
[334320394,1722970156207,-1626.04191113,0.0002,2]
[334320395,1722970156228,-1465.19894372,0.0002,2]
[334320396,1722970156249,-156.37509576,0.0002,2]
[334320397,1722970156271,-587.0,0.00020592,2]
[334320398,1722970156292,-228.181742,0.00020701,2]
[334320399,1722970156317,-3000.0,0.00020718,2]
[334320400,1722970156339,-250.0,0.00020759,2]
[334320401,1722970156360,-166.0239984,0.00020772,2]
[334320402,1722970156384,-250.0,0.00020816,2]
[334320403,1722970156408,-250.0,0.00020873,2]
[334320404,1722970156432,-250.0,0.0002093,2]
[334320405,1722970156458,-250.0,0.00020987,2]
[334320406,1722970156483,-250.0,0.00021044,2]
[334320407,1722970156505,-250.0,0.000211,2]
[334320408,1722970156528,-250.0,0.00021157,2]
[334320409,1722970156549,-250.0,0.00021214,2]
[334320410,1722970156571,-250.0,0.00021271,2]
[334320411,1722970156593,-250.0,0.00021328,2]
[334320412,1722970156614,-250.0,0.00021385,2]
[334320413,1722970156635,-250.0,0.00021442,2]
[334320414,1722970156656,-250.0,0.00021499,2]
[334320415,1722970156676,-250.0,0.00021556,2]
[334320416,1722970156698,-250.0,0.00021613,2]
[334320417,1722970156722,-250.0,0.0002167,2]
[334320418,1722970156745,-250.0,0.00021727,2]
[334320419,1722970156768,-250.0,0.00021784,2]
[334320420,1722970156791,-250.0,0.00021841,2]
[334320421,1722970156813,-823.0,0.00022651,2]
[334320422,1722970156838,-107.22458498,0.00022783,2]
[334320423,1722970159122,-392.77541502,0.00022783,2]
[334320424,1722970159144,-500.0,0.00022783,2]
[334320425,1722970159167,-500.0,0.00022783,2]
[334320426,1722970159189,-500.0,0.00022783,2]
[334320427,1722970159211,-500.0,0.00022783,2]
[334320428,1722970159233,-500.0,0.00022783,2]
[334320429,1722970159255,-223.61000129,0.00022783,2]
[334320430,1722970159277,-500.0,0.00022783,2]
[334320431,1722970159299,-517.2698936,0.00022783,2]
[334320432,1722970159322,-548.96303663,0.00022783,2]
[334320433,1722970159343,-500.0,0.00022783,2]
[334320434,1722970159365,-500.0,0.00022783,2]
[334320435,1722970159388,-500.0,0.00022783,2]
[334320436,1722970159410,-500.0,0.00022783,2]
[334320437,1722970159432,-453.99059152,0.00022783,2]
[334320438,1722970159455,-500.0,0.00022783,2]
[334320439,1722970159479,-500.0,0.00022783,2]
[334320440,1722970159501,-500.0,0.00022783,2]
[334320441,1722970159525,-500.0,0.00022783,2]
[334320442,1722970159547,-500.0,0.00022783,2]
[334320443,1722970159570,-500.0,0.00022783,2]
[334320444,1722970159592,-500.0,0.00022783,2]
[334320445,1722970159631,-500.0,0.00022783,2]
[334320446,1722970159653,-499.99999999,0.00022783,2]
[334320447,1722970159675,-20186.4916849,0.00022785,2]
[334320448,1722970159696,-1152.0,0.00024916,2]
[334320449,1722970159719,-151.51859376,0.00027408,2]
[334320450,1722970159754,-1147.48140624,0.00027408,2]
[334320451,1722970159776,-640.69205609,0.0002742,2]
[334320452,1722970159798,-8311.59278869,0.0003,21]
[334320453,1722970159821,-8137.23648071,0.0003,2]
[334320454,1722970159844,-151.0,0.0003,120]
[334320455,1722970159867,-228.181742,0.00031051,2]
[334320456,1722970160257,154.60575532,0.0003,2]
[334320457,1722970171120,-280.31064815,0.00031595,120]
[334320458,1722970205717,303.61726021,0.00027,120]
[334320459,1722970209114,254.6350379,0.00021065,2]
[334320489,1722970232098,12060.84482973,0.00021065,2]
[334320526,1722970232481,-419.24097497,0.00031595,120]
[334320527,1722970232656,-300.44837688,0.00031595,120]
[334320528,1722970232665,-1000.0,0.00031598,120]
[334320529,1722970232674,-366.39569698,0.00031598,120]
[334320530,1722970232686,-493.15203172,0.00031598,120]
[334320531,1722970232698,-140.4522713,0.00031598,120]
[334320532,1722970232707,-822.38530588,0.00032064,2]
[334320533,1722970232717,-3921.1718584,0.00032196,2]
[334320534,1722970232726,-2224.48756431,0.00032393,2]
[334320539,1722970238662,-1696.6842941,0.00032393,2]
[334320540,1722970238671,-2360.9445176,0.00032539,2]
[334320541,1722970238681,-544.61,0.000326,3]
[334320542,1722970238690,-272.3,0.000326,3]
[334320543,1722970238699,-816.95,0.000326,3]
[334320544,1722970238708,-1261.81,0.00032602,14]
[334320545,1722970238718,-151.0,0.00032625,7]
[334320546,1722970238727,-368.615861,0.00032625,7]
[334320547,1722970238736,-368.615861,0.00032625,7]
[334320548,1722970238746,-695.646756,0.00032625,7]
[334320549,1722970238755,-695.646756,0.00032625,7]
[334320550,1722970238764,-206.931927,0.00032625,7]
[334320551,1722970238777,-206.931927,0.00032625,7]
[334320552,1722970238786,-151.0,0.00032625,7]
[334320553,1722970238795,-500.0,0.00032629,2]
[334320554,1722970238804,-227.66255963,0.00032629,2]
[334320555,1722970238814,-328.22117684,0.00032629,2]
[334320556,1722970238823,-1072.37291499,0.0003263,4]
[334320570,1722970242261,-25719.86492841,0.0003263,4]
[334320571,1722970242271,-6424.07,0.00032632,3]
[334320573,1722970242281,-6389.53,0.00032632,3]
[334320575,1722970242290,-151.0,0.0003264,7]
[334320577,1722970242300,-151.0,0.0003264,7]
[334320579,1722970242309,-632.246303,0.0003264,7]
[334320581,1722970242319,-632.246303,0.0003264,7]
[334320583,1722970242329,-521.864381,0.0003264,7]
[334320585,1722970242338,-151.0,0.0003264,7]
[334320587,1722970242348,-521.864381,0.0003264,7]
[334320589,1722970242358,-159.842119,0.0003264,7]
[334320590,1722970242368,-151.0,0.0003264,7]
[334320591,1722970242378,-159.842119,0.0003264,7]
[334320592,1722970242388,-244.691948,0.0003264,7]
[334320593,1722970242397,-334.695873,0.0003264,7]
[334320594,1722970242408,-334.695873,0.0003264,7]
[334320595,1722970242418,-151.0,0.0003264,7]
[334320596,1722970242428,-368.615861,0.0003264,7]
[334320597,1722970242440,-368.615861,0.0003264,7]
[334320598,1722970242452,-695.646756,0.0003264,7]
[334320599,1722970242462,-550.034966,0.0003264,7]
[334320600,1722970242471,-695.646756,0.0003264,7]
[334320601,1722970242481,-550.034966,0.0003264,7]
[334320602,1722970242491,-206.931927,0.0003264,7]
[334320603,1722970242502,-206.931927,0.0003264,7]
[334320604,1722970242521,-151.0,0.0003264,7]
[334320605,1722970242530,-379.507783,0.0003264,7]
[334320606,1722970242540,-379.507783,0.0003264,7]
[334320607,1722970242550,-151.0,0.0003264,7]
[334320608,1722970242560,-546.015713,0.0003264,7]
[334320609,1722970242569,-546.015713,0.0003264,7]
[334320610,1722970242578,-151.0,0.0003264,7]
[334320611,1722970242588,-625.822656,0.0003264,7]
[334320612,1722970242597,-151.0,0.0003264,7]
[334320613,1722970242607,-625.822656,0.0003264,7]
[334320614,1722970242617,-151.0,0.0003264,7]